[Event "Titled Tuesday Blitz March 29 Late 2022"]
[White "Quintiliano Pinto, Renato R."]
[Black "Batsiashvili, Nino"]
[WhiteFideId "2117568"]
[BlackFideId "13602993"]
[WhiteElo "2439"]
[BlackElo "2192"]
[Result "1-0"]
[Round "03"]
[TimeControl "180+1"]
[Date "2022.03.30"]
[WhiteClock "0:00:32"]
[BlackClock "0:00:04"]

1. Nf3 {[%clk 0:03:00]}  d5 {[%clk 0:02:55]} 2. g3 {[%clk 0:03:00]}  Nf6 {[%clk 0:02:55]} 3. Bg2 {[%clk 0:02:59]}  c5 {[%clk 0:02:55]} 4. O-O {[%clk 0:02:57]}  h6 {[%clk 0:02:55]} 5. d4 {[%clk 0:02:57]}  cxd4 {[%clk 0:02:55]} 6. Nxd4 {[%clk 0:02:58]}  e5 {[%clk 0:02:55]} 7. Nb3 {[%clk 0:02:58]}  Be6 {[%clk 0:02:55]} 8. c4 {[%clk 0:02:56]}  dxc4 {[%clk 0:02:51]} 9. Qxd8+ {[%clk 0:02:54]}  Kxd8 {[%clk 0:02:49]} 10. Na5 {[%clk 0:02:55]}  Nc6 {[%clk 0:02:46]} 11. Nxb7+ {[%clk 0:02:32]}  Kc7 {[%clk 0:02:45]} 12. Na5 {[%clk 0:02:33]}  e4 {[%clk 0:02:33]} 13. Nxc6 {[%clk 0:02:31]}  Kxc6 {[%clk 0:02:34]} 14. Nc3 {[%clk 0:02:32]}  Bf5 {[%clk 0:02:29]} 15. f3 {[%clk 0:02:30]}  Bc5+ {[%clk 0:02:19]} 16. Kh1 {[%clk 0:02:28]}  e3 {[%clk 0:02:18]} 17. f4+ {[%clk 0:02:27]}  Kc7 {[%clk 0:02:09]} 18. Bxa8 {[%clk 0:02:19]}  Rxa8 {[%clk 0:02:10]} 19. Rd1 {[%clk 0:02:19]}  Bd7 {[%clk 0:01:53]} 20. Kg1 {[%clk 0:02:14]}  Bc6 {[%clk 0:01:53]} 21. b3 {[%clk 0:02:06]}  cxb3 {[%clk 0:01:47]} 22. axb3 {[%clk 0:02:05]}  Rb8 {[%clk 0:01:46]} 23. Ba3 {[%clk 0:02:02]}  Bxa3 {[%clk 0:01:00]} 24. Rxa3 {[%clk 0:02:03]}  Rb7 {[%clk 0:00:34]} 25. Rd3 {[%clk 0:01:55]}  Ng4 {[%clk 0:00:25]} 26. h3 {[%clk 0:01:50]}  Nf2 {[%clk 0:00:24]} 27. Rxe3 {[%clk 0:01:50]}  Nxh3+ {[%clk 0:00:24]} 28. Kh2 {[%clk 0:01:50]}  Nf2 {[%clk 0:00:23]} 29. Re7+ {[%clk 0:01:49]}  Kb8 {[%clk 0:00:19]} 30. Rxb7+ {[%clk 0:01:49]}  Kxb7 {[%clk 0:00:20]} 31. b4 {[%clk 0:01:41]}  Ng4+ {[%clk 0:00:20]} 32. Kg1 {[%clk 0:01:41]}  Ne3 {[%clk 0:00:18]} 33. b5 {[%clk 0:01:37]}  Bd7 {[%clk 0:00:18]} 34. Ra4 {[%clk 0:01:33]}  Nf5 {[%clk 0:00:16]} 35. Kf2 {[%clk 0:01:32]}  Kb6 {[%clk 0:00:16]} 36. Ra6+ {[%clk 0:01:28]}  Kb7 {[%clk 0:00:15]} 37. Ra1 {[%clk 0:01:21]}  Kb6 {[%clk 0:00:12]} 38. Rd1 {[%clk 0:01:11]}  Be6 {[%clk 0:00:11]} 39. e4 {[%clk 0:01:09]}  Ne7 {[%clk 0:00:10]} 40. f5 {[%clk 0:01:09]}  Bc4 {[%clk 0:00:09]} 41. Rd7 {[%clk 0:01:07]}  Nc8 {[%clk 0:00:09]} 42. Rd8 {[%clk 0:00:59]}  Kb7 {[%clk 0:00:08]} 43. g4 {[%clk 0:00:55]}  g6 {[%clk 0:00:06]} 44. f6 {[%clk 0:00:52]}  Be6 {[%clk 0:00:05]} 45. Kg3 {[%clk 0:00:47]}  h5 {[%clk 0:00:03]} 46. gxh5 {[%clk 0:00:47]}  gxh5 {[%clk 0:00:04]} 47. e5 {[%clk 0:00:43]}  Kc7 {[%clk 0:00:03]} 48. Rd4 {[%clk 0:00:40]}  Nb6 {[%clk 0:00:04]} 49. Ne4 {[%clk 0:00:35]}  Nd7 {[%clk 0:00:04]} 50. Kf4 {[%clk 0:00:34]}  Kb6 {[%clk 0:00:04]} 51. Ng5 {[%clk 0:00:32]} 1-0


[Site "https://www.chess.com"]

[Event "Titled Tuesday Blitz March 29 Late 2022"]
[White "Rangel, Daniel"]
[Black "Li, Ben"]
[WhiteFideId "2124475"]
[BlackFideId "2089980"]
[WhiteElo "2225"]
[BlackElo "2267"]
[Result "0-1"]
[Round "03"]
[TimeControl "180+1"]
[Date "2022.03.30"]
[WhiteClock "0:00:03"]
[BlackClock "0:00:34"]

1. d4 {[%clk 0:03:00]}  d5 {[%clk 0:02:59]} 2. Nf3 {[%clk 0:02:58]}  Nf6 {[%clk 0:02:52]} 3. g3 {[%clk 0:02:58]}  c5 {[%clk 0:02:50]} 4. Bg2 {[%clk 0:02:57]}  cxd4 {[%clk 0:02:50]} 5. Nxd4 {[%clk 0:02:57]}  e5 {[%clk 0:02:49]} 6. Nb3 {[%clk 0:02:58]}  Nc6 {[%clk 0:02:49]} 7. O-O {[%clk 0:02:59]}  Be7 {[%clk 0:02:48]} 8. Nc3 {[%clk 0:02:58]}  Be6 {[%clk 0:02:47]} 9. Bg5 {[%clk 0:02:56]}  d4 {[%clk 0:02:41]} 10. Na4 {[%clk 0:02:41]}  Nd7 {[%clk 0:02:33]} 11. Bxe7 {[%clk 0:02:31]}  Qxe7 {[%clk 0:02:33]} 12. c3 {[%clk 0:02:29]}  dxc3 {[%clk 0:02:12]} 13. Nxc3 {[%clk 0:02:30]}  Nf6 {[%clk 0:02:09]} 14. e4 {[%clk 0:02:10]}  Rd8 {[%clk 0:02:02]} 15. Nd5 {[%clk 0:02:09]}  Bxd5 {[%clk 0:02:00]} 16. exd5 {[%clk 0:02:10]}  O-O {[%clk 0:01:59]} 17. Rc1 {[%clk 0:02:01]}  Nb4 {[%clk 0:01:57]} 18. Re1 {[%clk 0:01:31]}  Nbxd5 {[%clk 0:01:52]} 19. Qe2 {[%clk 0:01:26]}  Rfe8 {[%clk 0:01:51]} 20. Qb5 {[%clk 0:01:16]}  a6 {[%clk 0:01:30]} 21. Qc5 {[%clk 0:01:13]}  Qe6 {[%clk 0:01:19]} 22. Nd4 {[%clk 0:00:54]}  Qg4 {[%clk 0:01:17]} 23. Nf3 {[%clk 0:00:43]}  e4 {[%clk 0:01:09]} 24. h3 {[%clk 0:00:43]}  Qd7 {[%clk 0:01:01]} 25. Ng5 {[%clk 0:00:39]}  e3 {[%clk 0:00:54]} 26. fxe3 {[%clk 0:00:33]}  h6 {[%clk 0:00:55]} 27. Nf3 {[%clk 0:00:27]}  Ne4 {[%clk 0:00:55]} 28. Qd4 {[%clk 0:00:24]}  Nxg3 {[%clk 0:00:55]} 29. Rcd1 {[%clk 0:00:20]}  Qe7 {[%clk 0:00:44]} 30. Nh4 {[%clk 0:00:13]}  Nxe3 {[%clk 0:00:38]} 31. Qxd8 {[%clk 0:00:04]}  Rxd8 {[%clk 0:00:37]} 32. Rxe3 {[%clk 0:00:05]}  Rxd1+ {[%clk 0:00:37]} 33. Kf2 {[%clk 0:00:04]}  Rd2+ {[%clk 0:00:36]} 34. Kf3 {[%clk 0:00:04]}  Qg5 {[%clk 0:00:34]} 35. Re8+ {[%clk 0:00:04]}  Kh7 {[%clk 0:00:35]} 36. Bf1 {[%clk 0:00:03]}  Nxf1 {[%clk 0:00:34]} 0-1


[Site "https://www.chess.com"]

[Event "Titled Tuesday Blitz March 29 Late 2022"]
[White "Ricaurte Lopez, Juan Carlos"]
[Black "Estrada Nieto, Julian"]
[WhiteFideId "3600327"]
[BlackFideId "5101018"]
[WhiteElo "2209"]
[BlackElo "2246"]
[Result "0-1"]
[Round "03"]
[TimeControl "180+1"]
[Date "2022.03.30"]
[WhiteClock "0:00:18"]
[BlackClock "0:01:22"]

1. e4 {[%clk 0:03:00]}  e5 {[%clk 0:02:59]} 2. d4 {[%clk 0:02:59]}  exd4 {[%clk 0:02:58]} 3. c3 {[%clk 0:02:59]}  d5 {[%clk 0:02:57]} 4. exd5 {[%clk 0:02:58]}  Qxd5 {[%clk 0:02:58]} 5. Nf3 {[%clk 0:02:57]}  Nc6 {[%clk 0:02:57]} 6. cxd4 {[%clk 0:02:56]}  Bg4 {[%clk 0:02:55]} 7. Be2 {[%clk 0:02:55]}  Bb4+ {[%clk 0:02:55]} 8. Nc3 {[%clk 0:02:54]}  Bxf3 {[%clk 0:02:55]} 9. Bxf3 {[%clk 0:02:52]}  Qc4 {[%clk 0:02:55]} 10. Bxc6+ {[%clk 0:02:46]}  bxc6 {[%clk 0:02:53]} 11. Qe2+ {[%clk 0:02:31]}  Qxe2+ {[%clk 0:02:52]} 12. Kxe2 {[%clk 0:02:32]}  Nf6 {[%clk 0:02:50]} 13. Rd1 {[%clk 0:02:29]}  O-O {[%clk 0:02:49]} 14. Be3 {[%clk 0:02:13]}  Rfe8 {[%clk 0:02:45]} 15. Rac1 {[%clk 0:02:12]}  Re6 {[%clk 0:02:41]} 16. Na4 {[%clk 0:02:11]}  Nd5 {[%clk 0:02:37]} 17. Kf3 {[%clk 0:01:27]}  Rae8 {[%clk 0:02:35]} 18. Rd3 {[%clk 0:01:25]}  Rf6+ {[%clk 0:02:31]} 19. Kg4 {[%clk 0:01:08]}  Re4+ {[%clk 0:02:28]} 20. Kh3 {[%clk 0:01:01]}  Bd6 {[%clk 0:01:44]} 21. Nc5 {[%clk 0:00:41]}  Nxe3 {[%clk 0:01:23]} 22. g3 {[%clk 0:00:18]}  Rh6# {[%clk 0:01:22]} 0-1


[Site "https://www.chess.com"]

[Event "Titled Tuesday Blitz March 29 Late 2022"]
[White "Rozman, Levy"]
[Black "Vasquez Schroeder, Rodrigo"]
[WhiteFideId "2039877"]
[BlackFideId "3400042"]
[WhiteElo "2376"]
[BlackElo "2561"]
[Result "0-1"]
[Round "03"]
[TimeControl "180+1"]
[Date "2022.03.29"]
[WhiteClock "0:00:18"]
[BlackClock "0:01:33"]

1. d4 {[%clk 0:03:00]}  Nf6 {[%clk 0:02:59]} 2. Bg5 {[%clk 0:03:00]}  e6 {[%clk 0:02:59]} 3. Nd2 {[%clk 0:02:56]}  h6 {[%clk 0:02:57]} 4. Bh4 {[%clk 0:02:56]}  d6 {[%clk 0:02:57]} 5. e4 {[%clk 0:02:55]}  Nbd7 {[%clk 0:02:57]} 6. Bd3 {[%clk 0:02:52]}  b6 {[%clk 0:02:49]} 7. Qe2 {[%clk 0:02:45]}  e5 {[%clk 0:02:46]} 8. d5 {[%clk 0:02:43]}  Be7 {[%clk 0:02:45]} 9. b4 {[%clk 0:02:33]}  Nxd5 {[%clk 0:02:39]} 10. exd5 {[%clk 0:02:23]}  Bxh4 {[%clk 0:02:38]} 11. g3 {[%clk 0:02:20]}  Be7 {[%clk 0:02:38]} 12. f4 {[%clk 0:02:15]}  a5 {[%clk 0:02:34]} 13. Ngf3 {[%clk 0:02:04]}  exf4 {[%clk 0:02:29]} 14. gxf4 {[%clk 0:01:59]}  Nf6 {[%clk 0:02:25]} 15. Rg1 {[%clk 0:01:58]}  Kf8 {[%clk 0:02:22]} 16. Qg2 {[%clk 0:01:28]}  Rg8 {[%clk 0:02:22]} 17. Nd4 {[%clk 0:01:19]}  Bd7 {[%clk 0:02:21]} 18. b5 {[%clk 0:01:17]}  Ng4 {[%clk 0:02:11]} 19. O-O-O {[%clk 0:01:11]}  Ne3 {[%clk 0:02:07]} 20. Qe4 {[%clk 0:01:10]}  Nxd1 {[%clk 0:02:05]} 21. Kxd1 {[%clk 0:01:11]}  Bf6 {[%clk 0:02:05]} 22. Ne6+ {[%clk 0:01:07]}  fxe6 {[%clk 0:01:59]} 23. dxe6 {[%clk 0:01:08]}  d5 {[%clk 0:01:48]} 24. Qf5 {[%clk 0:00:57]}  Be8 {[%clk 0:01:47]} 25. Nf3 {[%clk 0:00:45]}  Ke7 {[%clk 0:01:43]} 26. Ne5 {[%clk 0:00:38]}  Qd6 {[%clk 0:01:42]} 27. Qh7 {[%clk 0:00:24]}  Bh5+ {[%clk 0:01:37]} 28. Kc1 {[%clk 0:00:19]}  Bxe5 {[%clk 0:01:34]} 29. fxe5 {[%clk 0:00:18]}  Qxe5 {[%clk 0:01:33]} 0-1


[Site "https://www.chess.com"]

[Event "Titled Tuesday Blitz March 29 Late 2022"]
[White "Sanal, Vahap"]
[Black "Martinez Reyes, Pedro Ramon"]
[WhiteFideId "6300545"]
[BlackFideId "3901807"]
[WhiteElo "2603"]
[BlackElo "2410"]
[Result "1-0"]
[Round "03"]
[TimeControl "180+1"]
[Date "2022.03.29"]
[WhiteClock "0:02:19"]
[BlackClock "0:01:06"]

1. e4 {[%clk 0:03:00]}  e6 {[%clk 0:03:00]} 2. d4 {[%clk 0:03:01]}  d5 {[%clk 0:03:01]} 3. Nd2 {[%clk 0:03:01]}  Nf6 {[%clk 0:03:01]} 4. e5 {[%clk 0:03:02]}  Ne4 {[%clk 0:03:01]} 5. Bd3 {[%clk 0:02:58]}  Nxd2 {[%clk 0:03:01]} 6. Bxd2 {[%clk 0:02:58]}  c5 {[%clk 0:03:02]} 7. c3 {[%clk 0:02:59]}  cxd4 {[%clk 0:03:02]} 8. cxd4 {[%clk 0:02:59]}  Qb6 {[%clk 0:03:03]} 9. Ne2 {[%clk 0:02:57]}  Bd7 {[%clk 0:03:01]} 10. O-O {[%clk 0:02:57]}  Bb5 {[%clk 0:03:01]} 11. Bc3 {[%clk 0:02:53]}  Nc6 {[%clk 0:02:59]} 12. a4 {[%clk 0:02:51]}  Bxd3 {[%clk 0:02:59]} 13. Qxd3 {[%clk 0:02:52]}  Bb4 {[%clk 0:02:55]} 14. Qg3 {[%clk 0:02:51]}  O-O {[%clk 0:02:53]} 15. Nf4 {[%clk 0:02:48]}  Nxd4 {[%clk 0:02:35]} 16. a5 {[%clk 0:02:45]}  Qc5 {[%clk 0:02:29]} 17. Bxd4 {[%clk 0:02:44]}  Qxd4 {[%clk 0:02:29]} 18. Ra4 {[%clk 0:02:36]}  Qxb2 {[%clk 0:02:15]} 19. Nd3 {[%clk 0:02:35]}  Qc3 {[%clk 0:01:40]} 20. Rxb4 {[%clk 0:02:35]}  Rfc8 {[%clk 0:01:32]} 21. Rxb7 {[%clk 0:02:32]}  Qxa5 {[%clk 0:01:31]} 22. Nf4 {[%clk 0:02:30]}  Rc3 {[%clk 0:01:11]} 23. Qg5 {[%clk 0:02:21]}  h6 {[%clk 0:01:05]} 24. Qe7 {[%clk 0:02:19]}  Rf8 {[%clk 0:01:06]} 25. Nxe6 {[%clk 0:02:19]} 1-0


[Site "https://www.chess.com"]

[Event "Titled Tuesday Blitz March 29 Late 2022"]
[White "Sanchez, Robert"]
[Black "Ezat, Mohamed"]
[WhiteFideId "2034360"]
[BlackFideId "10600906"]
[WhiteElo "2287"]
[BlackElo "2386"]
[Result "0-1"]
[Round "03"]
[TimeControl "180+1"]
[Date "2022.03.30"]
[WhiteClock "0:00:55"]
[BlackClock "0:00:49"]

1. e4 {[%clk 0:03:00]}  c6 {[%clk 0:01:57]} 2. d4 {[%clk 0:02:58]}  d5 {[%clk 0:01:57]} 3. e5 {[%clk 0:02:59]}  c5 {[%clk 0:01:57]} 4. Nf3 {[%clk 0:02:58]}  Nc6 {[%clk 0:01:56]} 5. dxc5 {[%clk 0:02:56]}  Bg4 {[%clk 0:01:56]} 6. Bf4 {[%clk 0:02:53]}  e6 {[%clk 0:01:56]} 7. Be2 {[%clk 0:02:44]}  Bxc5 {[%clk 0:01:55]} 8. O-O {[%clk 0:02:44]}  Nge7 {[%clk 0:01:54]} 9. h3 {[%clk 0:02:43]}  Bxf3 {[%clk 0:01:54]} 10. Bxf3 {[%clk 0:02:43]}  Ng6 {[%clk 0:01:54]} 11. Bh2 {[%clk 0:02:41]}  Ngxe5 {[%clk 0:01:54]} 12. Be2 {[%clk 0:02:40]}  O-O {[%clk 0:01:53]} 13. Nd2 {[%clk 0:02:40]}  Kh8 {[%clk 0:01:49]} 14. Nb3 {[%clk 0:02:40]}  Bb6 {[%clk 0:01:49]} 15. a4 {[%clk 0:02:36]}  a6 {[%clk 0:01:48]} 16. a5 {[%clk 0:02:31]}  Ba7 {[%clk 0:01:47]} 17. Ra4 {[%clk 0:02:29]}  Rc8 {[%clk 0:01:42]} 18. c3 {[%clk 0:02:21]}  Qf6 {[%clk 0:01:34]} 19. Rf4 {[%clk 0:02:18]}  Qg6 {[%clk 0:01:33]} 20. Nd4 {[%clk 0:02:10]}  Nxd4 {[%clk 0:01:32]} 21. cxd4 {[%clk 0:02:09]}  Nc6 {[%clk 0:01:33]} 22. Bd3 {[%clk 0:01:56]}  Qh6 {[%clk 0:01:30]} 23. Bg3 {[%clk 0:01:48]}  f5 {[%clk 0:01:24]} 24. Rh4 {[%clk 0:01:44]}  Qg6 {[%clk 0:01:21]} 25. Bb1 {[%clk 0:01:24]}  Qf6 {[%clk 0:01:16]} 26. Qh5 {[%clk 0:01:21]}  h6 {[%clk 0:01:14]} 27. Be5 {[%clk 0:01:11]}  Nxe5 {[%clk 0:01:11]} 28. dxe5 {[%clk 0:01:11]}  Qxe5 {[%clk 0:01:11]} 29. g4 {[%clk 0:01:09]}  Bxf2+ {[%clk 0:00:57]} 30. Rxf2 {[%clk 0:01:00]}  Qg3+ {[%clk 0:00:56]} 31. Kf1 {[%clk 0:00:55]}  Rc1+ {[%clk 0:00:49]} 32. Ke2 {[%clk 0:00:55]}  Rxb1 {[%clk 0:00:49]} 0-1


[Site "https://www.chess.com"]

[Event "Titled Tuesday Blitz March 29 Late 2022"]
[White "Steinberg, Nitzan"]
[Black "Aldokhin, Ivan"]
[WhiteFideId "2801795"]
[BlackFideId "24115720"]
[WhiteElo "2440"]
[BlackElo "2231"]
[Result "1-0"]
[Round "03"]
[TimeControl "180+1"]
[Date "2022.03.29"]
[WhiteClock "0:00:49"]
[BlackClock "0:00:03"]

1. Nf3 {[%clk 0:03:00]}  Nf6 {[%clk 0:02:58]} 2. d4 {[%clk 0:03:01]}  g6 {[%clk 0:02:59]} 3. Nbd2 {[%clk 0:03:01]}  Bg7 {[%clk 0:02:59]} 4. e4 {[%clk 0:03:01]}  d6 {[%clk 0:02:57]} 5. c3 {[%clk 0:03:01]}  c5 {[%clk 0:02:51]} 6. Bd3 {[%clk 0:03:02]}  cxd4 {[%clk 0:02:51]} 7. cxd4 {[%clk 0:03:03]}  O-O {[%clk 0:02:51]} 8. h3 {[%clk 0:03:03]}  Nc6 {[%clk 0:02:51]} 9. O-O {[%clk 0:03:03]}  Bd7 {[%clk 0:02:32]} 10. Re1 {[%clk 0:03:03]}  e5 {[%clk 0:02:28]} 11. d5 {[%clk 0:03:00]}  Nb4 {[%clk 0:02:26]} 12. Bb1 {[%clk 0:03:00]}  a5 {[%clk 0:02:22]} 13. a3 {[%clk 0:02:57]}  Na6 {[%clk 0:02:22]} 14. Nf1 {[%clk 0:02:52]}  Nc5 {[%clk 0:02:17]} 15. Ng3 {[%clk 0:02:52]}  Ba4 {[%clk 0:02:08]} 16. Bc2 {[%clk 0:02:50]}  Bxc2 {[%clk 0:02:06]} 17. Qxc2 {[%clk 0:02:51]}  Rc8 {[%clk 0:02:04]} 18. Qe2 {[%clk 0:02:45]}  a4 {[%clk 0:01:43]} 19. Rb1 {[%clk 0:02:39]}  Qa5 {[%clk 0:01:23]} 20. Bd2 {[%clk 0:02:39]}  Qa6 {[%clk 0:01:19]} 21. Bb4 {[%clk 0:02:38]}  Nd3 {[%clk 0:01:03]} 22. Red1 {[%clk 0:02:03]}  Nxb4 {[%clk 0:01:03]} 23. axb4 {[%clk 0:02:03]}  Qxe2 {[%clk 0:01:03]} 24. Nxe2 {[%clk 0:02:04]}  Nxe4 {[%clk 0:01:04]} 25. Ra1 {[%clk 0:02:04]}  b5 {[%clk 0:01:03]} 26. Ne1 {[%clk 0:02:01]}  f5 {[%clk 0:01:00]} 27. f3 {[%clk 0:01:55]}  Nf6 {[%clk 0:00:59]} 28. Nc3 {[%clk 0:01:56]}  Rb8 {[%clk 0:00:56]} 29. Nc2 {[%clk 0:01:56]}  Rb7 {[%clk 0:00:36]} 30. Kf2 {[%clk 0:01:54]}  e4 {[%clk 0:00:35]} 31. Nd4 {[%clk 0:01:53]}  Rfb8 {[%clk 0:00:28]} 32. g4 {[%clk 0:01:38]}  exf3 {[%clk 0:00:27]} 33. gxf5 {[%clk 0:01:37]}  Nd7 {[%clk 0:00:20]} 34. fxg6 {[%clk 0:01:28]}  Bxd4+ {[%clk 0:00:20]} 35. Rxd4 {[%clk 0:01:28]}  hxg6 {[%clk 0:00:21]} 36. Ne4 {[%clk 0:01:22]}  Rb6 {[%clk 0:00:21]} 37. Ng5 {[%clk 0:01:11]}  Ne5 {[%clk 0:00:20]} 38. Rc1 {[%clk 0:01:09]}  Ra8 {[%clk 0:00:15]} 39. Rc7 {[%clk 0:01:06]}  a3 {[%clk 0:00:14]} 40. bxa3 {[%clk 0:01:07]}  Rxa3 {[%clk 0:00:14]} 41. Rh4 {[%clk 0:01:05]}  Ra2+ {[%clk 0:00:12]} 42. Ke3 {[%clk 0:00:56]}  Re2+ {[%clk 0:00:12]} 43. Kd4 {[%clk 0:00:55]}  Rb8 {[%clk 0:00:12]} 44. Rhh7 {[%clk 0:00:52]}  Rd2+ {[%clk 0:00:08]} 45. Kc3 {[%clk 0:00:47]}  Rd3+ {[%clk 0:00:07]} 46. Kc2 {[%clk 0:00:47]}  Ra8 {[%clk 0:00:03]} 47. Rcg7+ {[%clk 0:00:47]}  Kf8 {[%clk 0:00:03]} 48. Ne6+ {[%clk 0:00:48]}  Ke8 {[%clk 0:00:03]} 49. Re7# {[%clk 0:00:49]} 1-0


[Site "https://www.chess.com"]

[Event "Titled Tuesday Blitz March 29 Late 2022"]
[White "Svane, Rasmus"]
[Black "Godzwon, Iwo"]
[WhiteFideId "4657101"]
[BlackFideId "21802483"]
[WhiteElo "2645"]
[BlackElo "2201"]
[Result "1/2-1/2"]
[Round "03"]
[TimeControl "180+1"]
[Date "2022.03.29"]
[WhiteClock "0:00:13"]
[BlackClock "0:00:11"]

1. Nf3 {[%clk 0:03:00]}  c5 {[%clk 0:02:57]} 2. c4 {[%clk 0:02:58]}  g6 {[%clk 0:02:53]} 3. d4 {[%clk 0:02:57]}  cxd4 {[%clk 0:02:54]} 4. Nxd4 {[%clk 0:02:58]}  Bg7 {[%clk 0:02:50]} 5. e4 {[%clk 0:02:58]}  Nc6 {[%clk 0:02:51]} 6. Be3 {[%clk 0:02:58]}  Nf6 {[%clk 0:02:51]} 7. Nc3 {[%clk 0:02:58]}  O-O {[%clk 0:02:52]} 8. Be2 {[%clk 0:02:57]}  d6 {[%clk 0:02:53]} 9. O-O {[%clk 0:02:57]}  Bd7 {[%clk 0:02:53]} 10. Nc2 {[%clk 0:02:57]}  Rc8 {[%clk 0:02:21]} 11. f4 {[%clk 0:02:56]}  a6 {[%clk 0:02:16]} 12. Rc1 {[%clk 0:02:55]}  Ne8 {[%clk 0:02:11]} 13. Qd2 {[%clk 0:02:49]}  Nc7 {[%clk 0:02:04]} 14. Rcd1 {[%clk 0:02:38]}  b5 {[%clk 0:01:48]} 15. c5 {[%clk 0:02:22]}  Ne8 {[%clk 0:01:29]} 16. e5 {[%clk 0:02:18]}  Bf5 {[%clk 0:01:27]} 17. cxd6 {[%clk 0:01:43]}  exd6 {[%clk 0:01:27]} 18. exd6 {[%clk 0:01:40]}  Qxd6 {[%clk 0:01:02]} 19. Qxd6 {[%clk 0:01:33]}  Nxd6 {[%clk 0:01:03]} 20. Rxd6 {[%clk 0:01:17]}  Bxc2 {[%clk 0:01:02]} 21. Bf3 {[%clk 0:01:17]}  Na5 {[%clk 0:00:51]} 22. Nd5 {[%clk 0:01:00]}  Nc4 {[%clk 0:00:37]} 23. Ne7+ {[%clk 0:00:41]}  Kh8 {[%clk 0:00:37]} 24. Nxc8 {[%clk 0:00:42]}  Rxc8 {[%clk 0:00:37]} 25. Bc5 {[%clk 0:00:34]}  Nxd6 {[%clk 0:00:11]} 26. Bxd6 {[%clk 0:00:35]}  Bxb2 {[%clk 0:00:11]} 27. Bb7 {[%clk 0:00:35]}  Rd8 {[%clk 0:00:11]} 28. Be5+ {[%clk 0:00:36]}  Bxe5 {[%clk 0:00:10]} 29. fxe5 {[%clk 0:00:37]}  Kg7 {[%clk 0:00:03]} 30. Bxa6 {[%clk 0:00:37]}  Rd5 {[%clk 0:00:03]} 31. Re1 {[%clk 0:00:36]}  Bd3 {[%clk 0:00:02]} 32. Rd1 {[%clk 0:00:33]}  Kf8 {[%clk 0:00:02]} 33. Kf2 {[%clk 0:00:32]}  Ke7 {[%clk 0:00:01]} 34. a3 {[%clk 0:00:29]}  Bc4 {[%clk 0:00:02]} 35. Rxd5 {[%clk 0:00:28]}  Bxd5 {[%clk 0:00:03]} 36. Bxb5 {[%clk 0:00:17]}  Ke6 {[%clk 0:00:03]} 37. a4 {[%clk 0:00:17]}  Kxe5 {[%clk 0:00:04]} 38. a5 {[%clk 0:00:18]}  Kd6 {[%clk 0:00:04]} 39. g3 {[%clk 0:00:16]}  Kc5 {[%clk 0:00:05]} 40. Be2 {[%clk 0:00:15]}  Kb4 {[%clk 0:00:04]} 41. a6 {[%clk 0:00:15]}  Ka5 {[%clk 0:00:04]} 42. a7 {[%clk 0:00:13]}  Kb6 {[%clk 0:00:04]} 43. Bf3 {[%clk 0:00:14]}  Bxf3 {[%clk 0:00:04]} 44. Kxf3 {[%clk 0:00:15]}  Kxa7 {[%clk 0:00:04]} 45. Ke4 {[%clk 0:00:15]}  Kb6 {[%clk 0:00:05]} 46. Ke5 {[%clk 0:00:16]}  f5 {[%clk 0:00:05]} 47. Kf6 {[%clk 0:00:14]}  Kc5 {[%clk 0:00:05]} 48. h4 {[%clk 0:00:14]}  Kd4 {[%clk 0:00:05]} 49. Kg7 {[%clk 0:00:15]}  Ke4 {[%clk 0:00:06]} 50. Kxh7 {[%clk 0:00:15]}  Kf3 {[%clk 0:00:06]} 51. Kxg6 {[%clk 0:00:15]}  Kxg3 {[%clk 0:00:07]} 52. h5 {[%clk 0:00:11]}  f4 {[%clk 0:00:07]} 53. h6 {[%clk 0:00:12]}  f3 {[%clk 0:00:08]} 54. h7 {[%clk 0:00:13]}  f2 {[%clk 0:00:09]} 55. h8=Q {[%clk 0:00:13]}  f1=Q {[%clk 0:00:10]} 56. Qc3+ {[%clk 0:00:13]}  Qf3 {[%clk 0:00:10]} 57. Qxf3+ {[%clk 0:00:13]}  Kxf3 {[%clk 0:00:11]} 1/2-1/2


[Site "https://www.chess.com"]

[Event "Titled Tuesday Blitz March 29 Late 2022"]
[White "Vachier-Lagrave, Maxime"]
[Black "Sapunov, Evgeny"]
[WhiteFideId "623539"]
[BlackFideId "4126661"]
[WhiteElo "2813"]
[BlackElo "2470"]
[Result "1-0"]
[Round "03"]
[TimeControl "180+1"]
[Date "2022.03.29"]
[WhiteClock "0:01:07"]
[BlackClock "0:00:46"]

1. d4 {[%clk 0:02:59]}  Nf6 {[%clk 0:02:59]} 2. c4 {[%clk 0:02:58]}  g6 {[%clk 0:02:59]} 3. Nc3 {[%clk 0:02:58]}  Bg7 {[%clk 0:02:59]} 4. e4 {[%clk 0:02:58]}  O-O {[%clk 0:03:00]} 5. h4 {[%clk 0:02:58]}  h5 {[%clk 0:02:54]} 6. Be2 {[%clk 0:02:56]}  d6 {[%clk 0:02:54]} 7. Bg5 {[%clk 0:02:53]}  Nc6 {[%clk 0:02:54]} 8. Nf3 {[%clk 0:02:50]}  Bg4 {[%clk 0:02:53]} 9. Qd2 {[%clk 0:02:47]}  Bxf3 {[%clk 0:02:49]} 10. gxf3 {[%clk 0:02:47]}  e5 {[%clk 0:02:47]} 11. d5 {[%clk 0:02:46]}  Nd4 {[%clk 0:02:47]} 12. O-O-O {[%clk 0:02:46]}  Qe8 {[%clk 0:02:41]} 13. Kb1 {[%clk 0:02:45]}  c5 {[%clk 0:02:38]} 14. dxc6 {[%clk 0:02:33]}  bxc6 {[%clk 0:02:37]} 15. f4 {[%clk 0:02:33]}  Nh7 {[%clk 0:02:37]} 16. f5 {[%clk 0:02:29]}  Rb8 {[%clk 0:02:28]} 17. Rhg1 {[%clk 0:02:22]}  Nxg5 {[%clk 0:02:19]} 18. hxg5 {[%clk 0:02:21]}  Qd8 {[%clk 0:02:14]} 19. f6 {[%clk 0:02:20]}  Bh8 {[%clk 0:02:14]} 20. Bxh5 {[%clk 0:02:18]}  gxh5 {[%clk 0:02:09]} 21. Rh1 {[%clk 0:02:18]}  Re8 {[%clk 0:01:55]} 22. f4 {[%clk 0:01:39]}  Bxf6 {[%clk 0:01:47]} 23. gxf6 {[%clk 0:01:40]}  Qxf6 {[%clk 0:01:47]} 24. f5 {[%clk 0:01:41]}  Kf8 {[%clk 0:01:45]} 25. Rxh5 {[%clk 0:01:41]}  Red8 {[%clk 0:01:29]} 26. Rh6 {[%clk 0:01:37]}  Qg7 {[%clk 0:01:25]} 27. f6 {[%clk 0:01:37]}  Qg8 {[%clk 0:01:23]} 28. Rdh1 {[%clk 0:01:38]}  Ke8 {[%clk 0:01:19]} 29. Rh8 {[%clk 0:01:38]}  Kd7 {[%clk 0:01:19]} 30. Rxg8 {[%clk 0:01:38]}  Rxg8 {[%clk 0:01:20]} 31. Na4 {[%clk 0:01:36]}  Ke6 {[%clk 0:01:14]} 32. Qa5 {[%clk 0:01:33]}  Rb7 {[%clk 0:01:07]} 33. Rf1 {[%clk 0:01:30]}  Rgb8 {[%clk 0:01:01]} 34. Rf2 {[%clk 0:01:17]}  Rg8 {[%clk 0:01:00]} 35. b3 {[%clk 0:01:16]}  Rgb8 {[%clk 0:00:55]} 36. Kb2 {[%clk 0:01:15]}  Rg8 {[%clk 0:00:55]} 37. Qc3 {[%clk 0:01:08]}  c5 {[%clk 0:00:46]} 38. Qh3+ {[%clk 0:01:07]} 1-0


[Site "https://www.chess.com"]